Workbook

Sheet МО
A1: Сведения о расходах на реализацию целевых программ | L1: форма № 3
A2: Алексеевского сельского поселения
A3: на 01 июля 2013 года
J4: (в рублях с копейками)
A5: Вид про-грам-мы | B5: Наименование программ | C5: Коды строк | D5: Всего по местным бюджетам, | F5: в том числе за счет средств
F6: федерального бюджета | H6: областного бюджета | J6: местного бюджета
D7: годовые назначения | E7: кассовое исполнение с начала года | F7: годовые назначения | G7: кассовое исполнение с начала года | H7: годовые назначения | I7: кассовое исполнение с начала года | J7: годовые назначения | K7: кассовое исполнение с начала года
A8: А | B8: 1 | C8: 2 | D8: 3=5+7+9 | E8: 4=6+8+10 | F8: 5 | G8: 6 | H8: 7 | I8: 8 | J8: 9 | K8: 10
A9: муниципальная программа | B9: Долгосрочная целевая программа поселения "Культура Алексеевского сельского поселения Октябрьского района на 2010 - 2014 годы" | C9: 01 | D9: =F9+H9+J9 -> 3245100 | E9: =G9+I9+K9 -> 1676504.03 | F9: 0 | G9: 0 | H9: 0 | I9: 0 | J9: 3245100 | K9: 1676504.03
A10: муниципальная программа | B10: Долгосрочная целевая программа "Пожарная безопасность и защита населения и территорий Алексеевского сельского поселения от чрезвычайных ситуаций на 2011 - 2014 годы" | C10: 02 | D10: =F10+H10+J10 -> 42200 | E10: =G10+I10+K10 -> 35230.22 | F10: 0 | G10: 0 | H10: 0 | I10: 0 | J10: 42200 | K10: 35230.22
A11: муниципальная программа | B11: Долгосрочная целевая программа "Благоустройство: озеленение и освещение территории Алексеевского сельского поселения Октябрьского района на 2011-2014 г." | C11: 03 | D11: 1406900 | E11: 742758.67 | F11: 0 | G11: 0 | H11: 0 | I11: 0 | J11: 1406900 | K11: 742758.67
A12: муниципальная программа | B12: Долгосрочная целевая программа "Развитие дорог и улично-дорожной сети Алексеевского сельского поселения Октябрьского района на 2011-2014 г." | C12: 04 | D12: 1961400 | E12: 448193 | F12: 0 | G12: 0 | H12: 404400 | I12: 391193 | J12: 1557000 | K12: 57000
A13: муниципальная программа | B13: Долгосрочная программа "Социальная поддержка и социальное обслуживание населения Алексеевского сельского поселения на 2011-2014 годы" | C13: 05 | D13: 0 | E13: 0 | F13: 0 | G13: 0 | H13: 0 | I13: 0 | J13: 0 | K13: 0
A14: муниципальная программа | B14: Долгосрочная целевая программа "Строительство, реконструкция, капитальный ремонт инженерной инфраструктуры Алексеевского сельского поселения Октябрьского района на 2011 - 2014 г." | C14: 07 | D14: =F14+H14+J14 -> 54677000 | E14: 15240224 | F14: 7155000 | G14: 0 | H14: 43593700 | I14: 13960000 | J14: 3928300 | K14: 1280224
A15: муниципальная программа | B15: Догосрочная целевая программа Алексеевского сельского поселения Октябрьского района в области охраны окружающей среды и рационального природопользования на 2011 - 2015 годы | C15: 08 | D15: 37185.8 | E15: 37185.8 | F15: 0 | G15: 0 | H15: 0 | I15: 0 | J15: 37185.8 | K15: 37185.8
A16: муниципальная программа | B16: Долгосрочная целевая программа "По профилактике терроризма и экстремизма, а также минимизации и (или) ликвидации последствий проявления терроризма экстремизма на территории Алексеевского сельского поселения на 2011-2013 г.г." | C16: 10 | D16: =F16+H16+J16 -> 22000 | E16: =G16+I16+K16 -> 0 | F16: 0 | G16: 0 | H16: 0 | I16: 0 | J16: 22000 | K16: 0
A17: муниципальная программа | B17: Программа "Противодействие коррупции в муниципальном образовании "Алексеевское сельское поселение" на 2012 - 2013 г.г." | C17: 11 | D17: =F17+H17+J17 -> 7000 | E17: =G17+I17+K17 -> 0 | F17: 0 | G17: 0 | H17: 0 | I17: 0 | J17: 7000 | K17: 0
B18: ВСЕГО ПО ПРОГРАММАМ | C18: 100 | D18: =D19+D20 -> 61398785.8 | E18: =E19+E20 -> 18180095.72 | F18: =F15+F14+F13+F12+F11+F10+F9+F16+F17 -> 7155000 | G18: =G15+G14+G13+G12+G11+G10+G9 -> 0 | H18: =H15+H14+H13+H12+H11+H10+H9+H16+H17 -> 43998100 | I18: =I15+I14+I13+I12+I11+I10+I9 -> 14351193 | J18: =J15+J14+J13+J12+J11+J10+J9+J16+J17 -> 10245685.8 | K18: =K15+K14+K13+K12+K11+K10+K9 -> 3828902.72
B19: - на реализацию муниципальных программ | C19: 100.01 | D19: =D9+D10+D11+D12+D13+D14+D15+D16+D17 -> 61398785.8 | E19: =E9+E10+E11+E12+E13+E14+E15 -> 18180095.72 | F19: 7155000 | G19: 0 | H19: =H9+H10+H11+H12+H13+H14+H15+H16+H17 -> 43998100 | I19: 14351193 | J19: =J9+J10+J11+J12+J13+J14+J15+J16+J17 -> 10245685.8 | K19: 3828902.72
B20: - на реализацию региональных программ | C20: 100.02 | D20: 0 | E20: 0 | F20: 0 | G20: 0 | H20: 0 | I20: 0 | J20: 0 | K20: 0
A22: * данные по строке 100 должны соответствовать данным по строке 10100 "Региональные и муниципальные программы (без ФАИП)" Справочной таблицы к отчету об исполнении консолидированного бюджета субъекта Российской Федерации (ф.0503387)
A23: ** по региональным программам отражаются средства, запланированные к поступлению в местные бюджеты в виде межбюджетных трансфертов областного бюджета, в случае их невключения в аналогичные муниципальные программы
A25: Примечание: Сведения представляются финансовыми органами городских округов и финансовыми органами муниципальных районов с учетом данных городских и сельских поселений
B28: Глава Алексеевского сельского поселения | E28: Н.И.Лофиченко
B30: Главный бухгалтер | E30: В.Г.Горькова
B32: Начальник службы экономики и финансов | E32: Е.В.Клименко
B33: исполнитель 8 (86360)3-35-24 телефон
